[Event "AI Cup Div-3 2023"]
[Site "Online"]
[Date "2023.09.26"]
[Round "53.1"]
[White "Radjabov, Teimour"]
[Black "Kramnik, Vladimir"]
[Result "1/2-1/2"]
[Annotator "TA"]
[ECO "B45"]
[WhiteElo "2745"]
[BlackElo "2753"]
[PlyCount "78"]
[EventDate "2023.09.18"]
[EventType "k.o."]
[EventCountry "NET"]
[SourceTitle "playchess.com"]
[Source "ChessBase"]
[SourceQuality "1"]
[TimeControl "900+3"]

{[%evp 11,78,-3,0,0,0,0,0,0,0,0,0,-54,16,18,14,26,187,188,197,214,227,229,235,239,265,259,249,237,287,283,277,287,271,252,290,272,337,312,339,339,429,377,402,395,529,515,560,545,557,541,552,565,539,473,456,455,1163,1155,1070,0,578,223,223,0,542,0,203,0,398]} 1. e4 {[%emt 0:00:08]} c5 {[%emt 0:00:06]} 2. Nf3 {[%emt 0:00:01]} e6 {[%emt 0:00:00]} 3. d4 {[%emt 0:00:03]} cxd4 {[%emt 0:00:01]} 4. Nxd4 {[%emt 0:00:01]} Nf6 {[%emt 0:00:01]} 5. Nc3 {[%emt 0:00:03]} Nc6 {[%emt 0:00:01]} 6. a3 {[%emt 0:00:18]} Be7 {[%emt 0:00:02]} 7. Nxc6 {[%emt 0:00:10] B45: Sicilian Four Knights.} bxc6 {[%emt 0:00:02]} 8. e5 {[%emt 0:00:01]} Nd5 {[%emt 0:00:01]} 9. Ne4 {[%emt 0:00:00]} Qc7 {[%emt 0:00:37]} 10. f4 {[%emt 0:00:15][%cal Bf2f4,Bf4g5][%mdl 32]} f5 {[%emt 0:00:29] [#]} 11. Ng5 $1 $146 {[%emt 0:01:28][%mdl 8] A relevant novelty.} ({Better is} 11. Nd6+ $11 Bxd6 12. exd6) ({Predecessor:} 11. Nd6+ Bxd6 12. exd6 Qb8 13. b3 O-O 14. Bb2 c5 15. Be5 Bb7 16. Qd2 Qd8 17. O-O-O {0-1 Naiditsch,A (2736)-Kovalenko,I (2644) Bundesliga 1819 2018 (11.1)}) 11... O-O {[%emt 0:00:25]} (11... Qb6 $15) 12. c4 {[%emt 0:00:27] h4 would be deadly.} Bxg5 {[%emt 0:01:48]} 13. cxd5 {[%emt 0:00:04] aiming for d6.} exd5 {[%emt 0:01:17]} (13... Bh4+ $11 {and Black is okay.} 14. g3 Bd8) 14. fxg5 $18 {[%emt 0:00:05]} Qxe5+ {[%emt 0:00:31]} 15. Qe2 {[%emt 0:01:07]} Qb8 {[%emt 0:00:20] [#]} 16. g3 {[%emt 0:01:27]} a5 {[%emt 0:00:01]} 17. Bf4 {[%emt 0:01:15]} Qb3 {[%emt 0:00:05]} 18. Kf2 {[%emt 0:00:39]} Qb6+ {[%emt 0:00:21]} 19. Be3 {[%emt 0:00:27]} Qd8 {[%emt 0:02:42]} 20. Qd2 {[%emt 0:01:13]} f4 {[%emt 0:00:31]} 21. Bxf4 {[%emt 0:00:07]} (21. gxf4 $6 Qxg5 22. Rg1 Qf6 $18) 21... Qxg5 {[%emt 0:00:07]} 22. Be2 {[%emt 0:01:15]} Bb7 {[%emt 0:00:45]} 23. Bf3 {[%emt 0:01:07]} Qf5 {[%emt 0:00:15][%cal Og7g5]} 24. Rhe1 {[%emt 0:00:30]} h6 {[%emt 0:00:27]} 25. h4 {[%emt 0:00:45]} Rf7 {[%emt 0:00:30]} 26. Kg1 {[%emt 0:00:10]} Raf8 {[%emt 0:01:06]} 27. Re5 {[%emt 0:00:15]} (27. Qxa5 Qd3 $18) 27... Qf6 {[%emt 0:00:04]} 28. Rae1 {[%emt 0:00:01]} (28. Qxa5 d6 29. Re2 g5 $16) 28... d6 {[%emt 0:01:15]} 29. Re6 {[%emt 0:00:07]} Qf5 {[%emt 0:00:00]} 30. Bg2 {[%emt 0:00:11]} (30. Qxa5 g5 31. Bh5 Rf6 32. Rxf6 (32. Rxd6 Rxd6 $11) (32. Bxd6 Qf2+ 33. Kh1 Rxe6 34. Bxf8 c5) 32... Qxf6 33. hxg5 hxg5 $18) 30... Bc8 {[%emt 0:01:22]} 31. Rxd6 {[%emt 0:00:16]} Bd7 {[%emt 0:00:02]} 32. Kh2 {[%emt 0:00:41]} Qh5 {[%emt 0:00:02]} 33. Re5 {[%emt 0:00:16]} (33. Qxa5 Rxf4 34. Rxd7 (34. gxf4 Qxh4+ 35. Kg1 Qxf4 $18) 34... Rxh4+ 35. Kg1 (35. gxh4 Qxh4+ 36. Kg1 Qf2+ 37. Kh2 Qh4+ 38. Kg1 Qf2+ 39. Kh2 Qh4+ $11) 35... Qg4 $18) 33... g5 {[%emt 0:00:02] [#]} (33... Qg4 $142 34. Qe3 (34. Qxa5 Rxf4 35. Rxd7 Rf2 $11) 34... a4) 34. Bxg5 $1 {[%emt 0:00:47]} Rf2 {[%emt 0:00:02] Prevents Bf4.} 35. Rxh6 $2 {[%emt 0:00:01]} (35. Qxa5 Rxg2+ 36. Kxg2 Qf3+ 37. Kh2 Qf2+ 38. Kh1 Qf1+ 39. Kh2 Rf2#) (35. Qc3 $18 Qf7 36. Bf4 (36. Rxh6 $2 {is a self mate.} Rxg2+ {[%mdl 64] Remove Defender} 37. Kxg2 Qf1+ 38. Kh2 Rf2#)) 35... Qf3 $2 {[%emt 0:00:12][%mdl 8192]} (35... Qg4 $1 $11 36. Rg6+ (36. Qxa5 $2 {leads to mate.} Qh3+ 37. Kg1 Rxg2#) 36... Kh7 37. Rh6+ Kg8 38. Rg6+ (38. Qxa5 $2 Qh3+ 39. Kg1 Rxg2#) 38... Kh7 39. Rh6+ Kg8) 36. Rg6+ $2 {[%emt 0:00:34]} (36. Qxa5 $2 Qxg2#) (36. Qxf2 Qxf2 37. Be3) 36... Kh7 {[%emt 0:00:01][%csl Gf2][%cal Rf3g2]} (36... Kf7 $2 37. Rf6+ Qxf6 38. Qe3 Rxg2+ 39. Kxg2 $18) 37. Rh6+ {[%emt 0:00:17]} Kg8 {[%emt 0:00:01][%csl Gf2][%cal Rf3g2]} 38. Rg6+ $2 {[%emt 0:00:04]} (38. Qxa5 $2 Qxg2#) (38. Qxf2 $1 Qxf2 39. Be3) 38... Kh7 $1 {[%emt 0:00:02][%csl Gf2][%cal Rf3g2]} (38... Kf7 $2 39. Rf6+ Qxf6 40. Qe3 Rxg2+ 41. Kxg2 $18) 39. Rh6+ $2 {[%emt 0:00:01]} (39. Qxf2 $1 Qxf2 40. Rh6+ Kg7 41. Re7+ Rf7 42. Rf6 Qxg2+ 43. Kxg2 Rxe7 44. Rd6) 39... Kg8 {[%emt 0:00:01][%mdl 32768] Weighted Error Value: White=0.79/Black=0.44. An unexpected result.} 1/2-1/2

[Event "AI Cup Div-3 2023"]
[Site "Online"]
[Date "2023.09.26"]
[Round "53.1"]
[White "Durarbayli, Vasif"]
[Black "Beerdsen, Thomas"]
[Result "1-0"]
[Annotator "ChessBase"]
[ECO "C63"]
[WhiteElo "2625"]
[BlackElo "2511"]
[PlyCount "73"]
[EventDate "2023.09.18"]
[EventType "k.o."]
[EventCountry "NET"]
[SourceTitle "playchess.com"]
[Source "ChessBase"]
[SourceQuality "1"]
[TimeControl "900+3"]

1. e4 {[%emt 0:00:03]} e5 {[%emt 0:00:05]} 2. Nf3 {[%emt 0:00:02]} Nc6 {[%emt 0:00:01]} 3. Bb5 {[%emt 0:00:00]} f5 {[%emt 0:00:01]} 4. Nc3 {[%emt 0:00:07]} fxe4 {[%emt 0:00:03]} 5. Nxe4 {[%emt 0:00:01]} Nf6 {[%emt 0:00:01]} 6. Nxf6+ {[%emt 0:00:03]} Qxf6 {[%emt 0:00:02]} 7. Qe2 {[%emt 0:00:02]} Be7 {[%emt 0:00:03]} 8. Bxc6 {[%emt 0:00:06]} dxc6 {[%emt 0:00:55]} 9. Nxe5 {[%emt 0:00:23]} O-O {[%emt 0:00:11]} 10. O-O {[%emt 0:00:47]} c5 {[%emt 0:01:15]} 11. b3 {[%emt 0:00:45]} Bd6 {[%emt 0:01:13]} 12. Bb2 {[%emt 0:00:03]} Bf5 {[%emt 0:00:29]} 13. Rae1 {[%emt 0:01:08]} Rae8 {[%emt 0:00:11]} 14. f4 {[%emt 0:00:14]} Qh4 {[%emt 0:01:26]} 15. d3 {[%emt 0:03:12]} b6 {[%emt 0:00:55]} 16. Qf3 {[%emt 0:00:48]} Re6 {[%emt 0:01:16]} 17. Qd5 {[%emt 0:00:50]} Rfe8 {[%emt 0:03:34]} 18. Re3 {[%emt 0:00:28]} c6 {[%emt 0:00:46]} 19. Qf3 {[%emt 0:00:03]} Bc7 {[%emt 0:01:00]} 20. Rfe1 {[%emt 0:01:02]} h6 {[%emt 0:00:11]} 21. a4 {[%emt 0:00:12]} b5 {[%emt 0:00:48]} 22. g3 {[%emt 0:00:43]} Qh3 {[%emt 0:00:38]} 23. Nxc6 {[%emt 0:00:44]} bxa4 {[%emt 0:00:10]} 24. bxa4 {[%emt 0:00:16]} Bg4 {[%emt 0:00:21]} 25. Qd5 {[%emt 0:00:14]} Kh8 {[%emt 0:00:21]} 26. Qd7 {[%emt 0:00:37]} R6e7 {[%emt 0:00:12]} 27. Bxg7+ {[%emt 0:00:13]} Kh7 {[%emt 0:00:09]} 28. Qxe7 {[%emt 0:00:10]} Rxe7 {[%emt 0:00:03]} 29. Rxe7 {[%emt 0:00:00]} Bd6 {[%emt 0:00:03]} 30. Bc3+ {[%emt 0:01:36]} Bxe7 {[%emt 0:00:02]} 31. Rxe7+ {[%emt 0:00:01]} Kg8 {[%emt 0:00:04]} 32. Ne5 {[%emt 0:00:27]} Be6 {[%emt 0:00:03]} 33. Re8+ {[%emt 0:00:41]} Kh7 {[%emt 0:00:00]} 34. Nf3 {[%emt 0:00:00]} Qf5 {[%emt 0:00:09]} 35. Kf2 {[%emt 0:00:01]} c4 {[%emt 0:00:02]} 36. Rh8+ {[%emt 0:00:07]} Kg6 {[%emt 0:00:01]} 37. Nh4+ {[%emt 0:00:01]} 1-0

[Event "AI Cup Div-3 2023"]
[Site "Online"]
[Date "2023.09.26"]
[Round "53.1"]
[White "Demchenko, Anton"]
[Black "Kravtsiv, Martyn"]
[Result "1-0"]
[Annotator "ChessBase"]
[ECO "C24"]
[WhiteElo "2608"]
[BlackElo "2598"]
[PlyCount "85"]
[EventDate "2023.09.18"]
[EventType "k.o."]
[EventCountry "NET"]
[SourceTitle "playchess.com"]
[Source "ChessBase"]
[SourceQuality "1"]
[TimeControl "900+3"]

1. e4 {[%emt 0:00:03]} e5 {[%emt 0:00:05]} 2. Nf3 {[%emt 0:00:02]} Nc6 {[%emt 0:00:01]} 3. Bc4 {[%emt 0:00:01]} Nf6 {[%emt 0:00:02]} 4. d3 {[%emt 0:00:01]} d5 {[%emt 0:00:02]} 5. exd5 {[%emt 0:00:02]} Nxd5 {[%emt 0:00:01]} 6. O-O {[%emt 0:00:02]} Be7 {[%emt 0:00:03]} 7. h3 {[%emt 0:00:07]} Nb6 {[%emt 0:00:04]} 8. Bb3 {[%emt 0:00:06]} a5 {[%emt 0:00:02]} 9. a4 {[%emt 0:00:23]} Qd6 {[%emt 0:01:51]} 10. Re1 {[%emt 0:00:37]} Be6 {[%emt 0:00:38]} 11. Bxe6 {[%emt 0:01:31]} Qxe6 {[%emt 0:00:00]} 12. Nc3 {[%emt 0:00:01]} O-O-O {[%emt 0:01:24]} 13. Be3 {[%emt 0:00:33]} Nd5 {[%emt 0:00:35]} 14. Qe2 {[%emt 0:00:30]} Rhe8 {[%emt 0:00:36]} 15. Nb5 {[%emt 0:00:52]} f5 {[%emt 0:01:07]} 16. Bd2 {[%emt 0:01:07]} Bf6 {[%emt 0:01:09]} 17. c4 {[%emt 0:00:53]} Ndb4 {[%emt 0:00:03]} 18. d4 {[%emt 0:00:01]} e4 {[%emt 0:00:02]} 19. d5 {[%emt 0:00:05]} Nxd5 {[%emt 0:00:01]} 20. Ng5 {[%emt 0:00:15]} Bxg5 {[%emt 0:03:27]} 21. cxd5 {[%emt 0:00:04]} Rxd5 {[%emt 0:00:00]} 22. Bxg5 {[%emt 0:00:05]} Ne5 {[%emt 0:00:33]} 23. Bf4 {[%emt 0:00:30]} c6 {[%emt 0:00:41]} 24. Nc3 {[%emt 0:00:06]} Rd4 {[%emt 0:01:57]} 25. Qe3 {[%emt 0:00:45]} Red8 {[%emt 0:00:02]} 26. Ne2 {[%emt 0:00:10]} Rb4 {[%emt 0:00:22]} 27. Qa7 {[%emt 0:00:24]} Nd3 {[%emt 0:00:14]} 28. Qxa5 {[%emt 0:00:43]} Kd7 {[%emt 0:00:18]} 29. Qc7+ {[%emt 0:00:19]} Ke8 {[%emt 0:00:01]} 30. Qxg7 {[%emt 0:00:00]} Rxb2 {[%emt 0:00:05]} 31. Qh8+ {[%emt 0:00:30]} Kd7 {[%emt 0:00:18]} 32. Qxh7+ {[%emt 0:00:01]} Ke8 {[%emt 0:00:02]} 33. Qh8+ {[%emt 0:00:10]} Kd7 {[%emt 0:00:02]} 34. Qg7+ {[%emt 0:00:00]} Ke8 {[%emt 0:00:03]} 35. Bg5 {[%emt 0:00:15]} Rd7 {[%emt 0:00:18]} 36. Qh8+ {[%emt 0:00:02]} Kf7 {[%emt 0:00:00]} 37. Nf4 {[%emt 0:00:00]} Nxf4 {[%emt 0:00:05]} 38. Qxb2 {[%emt 0:00:12]} Nd3 {[%emt 0:00:02]} 39. Qh8 {[%emt 0:00:06]} Qg6 {[%emt 0:00:01]} 40. h4 {[%emt 0:00:08]} f4 {[%emt 0:00:04]} 41. Qc8 {[%emt 0:00:21]} Ke6 {[%emt 0:00:33]} 42. Rxe4+ {[%emt 0:00:08]} Qxe4 {[%emt 0:00:01]} 43. Qe8+ {[%emt 0:00:00]} 1-0

[Event "AI Cup Div-3 2023"]
[Site "Online"]
[Date "2023.09.26"]
[Round "53.1"]
[White "Muradli, Mahammad"]
[Black "Kovalev, Vladislav"]
[Result "0-1"]
[Annotator "ChessBase"]
[ECO "E16"]
[WhiteElo "2550"]
[BlackElo "2582"]
[PlyCount "106"]
[EventDate "2023.09.18"]
[EventType "k.o."]
[EventCountry "NET"]
[SourceTitle "playchess.com"]
[Source "ChessBase"]
[SourceQuality "1"]
[TimeControl "900+3"]

1. d4 {[%emt 0:00:04]} Nf6 {[%emt 0:00:04]} 2. c4 {[%emt 0:00:02]} e6 {[%emt 0:00:01]} 3. Nf3 {[%emt 0:00:01]} Bb4+ {[%emt 0:00:02]} 4. Bd2 {[%emt 0:00:01]} Qe7 {[%emt 0:00:01]} 5. g3 {[%emt 0:00:03]} b6 {[%emt 0:00:02]} 6. Bg2 {[%emt 0:00:07]} Bb7 {[%emt 0:00:01]} 7. O-O {[%emt 0:00:28]} Bxd2 {[%emt 0:00:01]} 8. Nbxd2 {[%emt 0:00:36]} O-O {[%emt 0:00:46]} 9. Qc2 {[%emt 0:00:03]} c5 {[%emt 0:00:54]} 10. e4 {[%emt 0:00:49]} cxd4 {[%emt 0:00:45]} 11. e5 {[%emt 0:00:58]} Ng4 {[%emt 0:00:02]} 12. h3 {[%emt 0:00:46]} Nh6 {[%emt 0:00:04]} 13. Ng5 {[%emt 0:00:06]} Qxg5 {[%emt 0:00:00]} 14. Bxb7 {[%emt 0:00:02]} Nc6 {[%emt 0:00:06]} 15. Bxa8 {[%emt 0:00:40]} Rxa8 {[%emt 0:00:00]} 16. Nf3 {[%emt 0:00:16]} Qh5 {[%emt 0:00:41]} 17. Kg2 {[%emt 0:01:20]} Nxe5 {[%emt 0:00:06]} 18. Nxd4 {[%emt 0:00:07]} Rc8 {[%emt 0:00:10]} 19. Qa4 {[%emt 0:00:52]} Nf5 {[%emt 0:00:42]} 20. Qd1 {[%emt 0:01:16]} Qg6 {[%emt 0:00:07]} 21. b3 {[%emt 0:01:16]} h5 {[%emt 0:00:43]} 22. Nxf5 {[%emt 0:00:57]} Qxf5 {[%emt 0:00:02]} 23. Qe2 {[%emt 0:00:07]} d5 {[%emt 0:01:20]} 24. cxd5 {[%emt 0:00:55]} Rc2 {[%emt 0:00:05]} 25. Qe3 {[%emt 0:00:01]} exd5 {[%emt 0:00:13]} 26. Rae1 {[%emt 0:00:38]} f6 {[%emt 0:01:00]} 27. a4 {[%emt 0:00:31]} g5 {[%emt 0:02:40]} 28. Re2 {[%emt 0:01:17]} d4 {[%emt 0:00:22]} 29. Qe4 {[%emt 0:00:01]} Qxe4+ {[%emt 0:00:00]} 30. Rxe4 {[%emt 0:00:00]} d3 {[%emt 0:00:01]} 31. Rd4 {[%emt 0:00:10]} g4 {[%emt 0:00:11]} 32. hxg4 {[%emt 0:00:26]} hxg4 {[%emt 0:00:00]} 33. b4 {[%emt 0:00:15]} Kf7 {[%emt 0:00:21]} 34. b5 {[%emt 0:00:42]} Ke6 {[%emt 0:00:10]} 35. Re1 {[%emt 0:00:15]} Kf5 {[%emt 0:00:26]} 36. Rd1 {[%emt 0:00:26]} Rc3 {[%emt 0:00:50]} 37. Kf1 {[%emt 0:00:07]} Ke6 {[%emt 0:00:09]} 38. Kg2 {[%emt 0:00:05]} Rc5 {[%emt 0:00:40]} 39. Kf1 {[%emt 0:00:10]} Rd5 {[%emt 0:00:08]} 40. Re4 {[%emt 0:00:01]} Kd6 {[%emt 0:00:12]} 41. Rf4 {[%emt 0:00:02]} Ke6 {[%emt 0:00:06]} 42. Re4 {[%emt 0:00:04]} f5 {[%emt 0:00:20]} 43. Re3 {[%emt 0:00:01]} Kd6 {[%emt 0:00:06]} 44. Rc1 {[%emt 0:00:05]} Rd4 {[%emt 0:00:13]} 45. Ra1 {[%emt 0:00:03]} Kd5 {[%emt 0:00:18]} 46. a5 {[%emt 0:00:05]} bxa5 {[%emt 0:00:14]} 47. Rxa5 {[%emt 0:00:01]} d2 {[%emt 0:01:21]} 48. b6+ {[%emt 0:00:01]} Kd6 {[%emt 0:00:00]} 49. Raxe5 {[%emt 0:00:08]} d1=Q+ {[%emt 0:00:06]} 50. Kg2 {[%emt 0:00:01]} Qf3+ {[%emt 0:00:21]} 51. Kg1 {[%emt 0:00:04]} Rd1+ {[%emt 0:00:02]} 52. Re1 {[%emt 0:00:01]} Rxe1+ {[%emt 0:00:01]} 53. Rxe1 {[%emt 0:00:01]} axb6 {[%emt 0:00:00]} 0-1

[Event "AI Cup Div-3 2023"]
[Site "Online"]
[Date "2023.09.26"]
[Round "53.2"]
[White "Kramnik, Vladimir"]
[Black "Radjabov, Teimour"]
[Result "0-1"]
[Annotator "TA"]
[ECO "A36"]
[WhiteElo "2753"]
[BlackElo "2745"]
[PlyCount "76"]
[EventDate "2023.09.18"]
[EventType "k.o."]
[EventCountry "NET"]
[SourceTitle "playchess.com"]
[Source "ChessBase"]
[SourceQuality "1"]
[TimeControl "900+3"]

{[%evp 13,76,5,15,1,12,13,36,31,29,34,31,24,35,33,41,33,35,0,0,0,0,6,3,-58,-60,-67,-13,-22,0,0,0,0,0,-54,-26,-24,-33,-33,-33,-33,-22,-25,-27,-27,-19,-90,-83,-87,-93,-230,-137,-239,-195,-189,-189,-185,-145,-679,-675,-666,-625,-653,-649,-29998,-29990]} 1. c4 {[%emt 0:00:04]} c5 {[%emt 0:00:09]} 2. g3 {[%emt 0:00:01]} g6 {[%emt 0:00:02]} 3. Bg2 {[%emt 0:00:01]} Bg7 {[%emt 0:00:00]} 4. Nc3 {[%emt 0:00:01]} Nc6 {[%emt 0:00:00]} 5. d3 {[%emt 0:00:00]} d6 {[%emt 0:00:04]} 6. e3 {[%emt 0:00:04]} e5 {[%emt 0:00:15]} 7. Nge2 {[%emt 0:00:03]} Nge7 {[%emt 0:00:00]} 8. a3 {[%emt 0:00:05][%cal Ob2b4] A36: Symmetrical English vs ...g6: 4 Bg2 Bg7.} Rb8 $5 {[%emt 0:00:11][%mdl 4] [#] A promising side line.} 9. b4 $1 {[%emt 0:00:21]} O-O {[%emt 0:00:01]} (9... a6 10. bxc5) 10. b5 {[%emt 0:00:19] White is slightly better.} Na5 {[%emt 0:00:03]} 11. O-O {[%emt 0:00:02]} f5 {[%emt 0:00:06] [#]} 12. Qc2 $146 {[%emt 0:00:30]} ({Predecessor:} 12. Bd2 Be6 13. Rc1 Bf7 14. e4 b6 15. Bg5 Qd7 16. Bxe7 Qxe7 17. exf5 gxf5 18. Nd5 {1-0 Cvitan,O (2294)-Molina,F (2498) SUI-chT Switzerland 2001 (6.3)}) 12... Be6 {[%emt 0:00:15]} 13. e4 {[%emt 0:00:28]} Qd7 {[%emt 0:00:48]} 14. Bd2 {[%emt 0:00:08]} b6 {[%emt 0:00:01]} 15. f4 {[%emt 0:00:27]} fxe4 {[%emt 0:02:50]} 16. Nxe4 {[%emt 0:00:04]} d5 {[%emt 0:00:01]} 17. cxd5 {[%emt 0:00:55]} Nxd5 {[%emt 0:00:23] ...exf4 would be deadly.} (17... Bxd5 $5 {[%cal Re5f4]} 18. Bxa5 bxa5 $11) 18. Rae1 {[%emt 0:00:50]} ({Better is} 18. fxe5 $11 Bxe5 19. Rab1) 18... exf4 $1 $15 {[%emt 0:00:39]} (18... Qxb5 19. Ng5 Qd7 20. fxe5 $16) 19. gxf4 {[%emt 0:00:02]} h6 {[%emt 0:00:52] Prevents Ng5. Black is more active.} (19... Qxb5 20. Ng5 Qb3 21. Qxb3 Nxb3 22. Nxe6 $16) (19... Kh8 $15 20. Rf2 Bg8) 20. Kh1 {[%emt 0:00:23]} Qxb5 {[%emt 0:02:09]} 21. N2g3 {[%emt 0:00:31][%cal Oe4c5]} Qb3 {[%emt 0:02:18]} 22. Qc1 {[%emt 0:00:05] Threatens to win with Bxa5.} Bb2 {[%emt 0:00:11]} (22... Qxd3 $2 23. Bxa5 (23. Nf2 Qb3 $16) 23... Qb5 24. Nc3 (24. Nxc5 Rbc8 $16 {[%mdl 64] Pin}) 24... Nxc3 25. Bxc3 $18) (22... Qa2 {seems wilder.} 23. Nd6 Nc7 24. Bxa5 bxa5 25. Re2 Rb2) 23. Nxc5 {[%emt 0:05:05]} Bxc1 {[%emt 0:00:14]} ({Don't do} 23... Qxa3 24. Qd1 Bf7 25. Nd7 Qxd3 26. f5 $16) (23... bxc5 {is interesting.} 24. Qxc5 Rb5 25. Qf2 Bc8) 24. Nxb3 {[%emt 0:00:01]} Nxb3 {[%emt 0:00:44][%cal Ba5b3,Bb3c1,Bc1d3][%mdl 32]} 25. Bxc1 {[%emt 0:02:08]} Nxc1 {[%emt 0:00:05] A dynamic duo of knights.} 26. f5 {[%emt 0:00:37]} Nxd3 {[%emt 0:00:43]} 27. Rxe6 {[%emt 0:00:04]} N5f4 $36 {[%emt 0:00:09][%mdl 2048] Black has good play.} 28. Re7 {[%emt 0:00:39]} gxf5 {[%emt 0:01:27]} 29. Bc6 {[%emt 0:00:02]} (29. Rxa7 $11 {keeps the balance.} Rbc8 30. Rd7) 29... Rbc8 $17 {[%emt 0:00:24]} 30. Ba4 {[%emt 0:00:50]} Rc3 {[%emt 0:00:29]} 31. Bd1 {[%emt 0:01:03] [#]} (31. Bd7 $17 {might work better.}) 31... Rxa3 {[%emt 0:00:11]} (31... Nh3 $1 $19 32. Nh5 Kh8) 32. Nh5 {[%emt 0:00:15]} (32. Bc2 $17 {keeps fighting.}) 32... Nxh5 {[%emt 0:00:22]} 33. Bxh5 {[%emt 0:00:01]} Kh8 {[%emt 0:00:08]} 34. Bg6 {[%emt 0:00:02]} Ra2 {[%emt 0:00:15]} 35. Rxf5 $2 {[%emt 0:00:20][%mdl 8192] Now White is beyond hope.} (35. Rh7+ $17 Kg8 36. Rb7) 35... Ra1+ $19 {[%emt 0:00:09]} 36. Kg2 {[%emt 0:00:02][%cal Rf5f8]} Nf4+ {[%emt 0:00:00]} 37. Kg3 {[%emt 0:00:17][%cal Rf5f8]} Nxg6 {[%emt 0:00:01]} 38. Rh5 {[%emt 0:00:01]} Nxe7 {[%emt 0:00:02] Weighted Error Value: White=0.63/Black=0.13 (very precise)} 0-1

[Event "AI Cup Div-3 2023"]
[Site "Online"]
[Date "2023.09.26"]
[Round "53.2"]
[White "Kravtsiv, Martyn"]
[Black "Demchenko, Anton"]
[Result "1-0"]
[Annotator "ChessBase"]
[ECO "C58"]
[WhiteElo "2598"]
[BlackElo "2608"]
[PlyCount "101"]
[EventDate "2023.09.18"]
[EventType "k.o."]
[EventCountry "NET"]
[SourceTitle "playchess.com"]
[Source "ChessBase"]
[SourceQuality "1"]
[TimeControl "900+3"]

1. e4 {[%emt 0:00:03]} e5 {[%emt 0:00:05]} 2. Nf3 {[%emt 0:00:03]} Nc6 {[%emt 0:00:01]} 3. Bc4 {[%emt 0:00:00]} Nf6 {[%emt 0:00:02]} 4. Ng5 {[%emt 0:00:01]} d5 {[%emt 0:00:01]} 5. exd5 {[%emt 0:00:01]} Na5 {[%emt 0:00:00]} 6. Bb5+ {[%emt 0:00:01]} c6 {[%emt 0:00:01]} 7. dxc6 {[%emt 0:00:01]} bxc6 {[%emt 0:00:00]} 8. Bd3 {[%emt 0:00:01]} Nd5 {[%emt 0:00:09]} 9. Nf3 {[%emt 0:00:02]} Bd6 {[%emt 0:00:02]} 10. Nc3 {[%emt 0:00:02]} O-O {[%emt 0:00:13]} 11. Be2 {[%emt 0:00:03]} Qc7 {[%emt 0:01:44]} 12. d3 {[%emt 0:00:26]} Nxc3 {[%emt 0:01:08]} 13. bxc3 {[%emt 0:00:03]} Rd8 {[%emt 0:00:01]} 14. Nd2 {[%emt 0:02:02]} f5 {[%emt 0:00:17]} 15. O-O {[%emt 0:00:06]} c5 {[%emt 0:00:20]} 16. Bf3 {[%emt 0:01:18]} Rb8 {[%emt 0:00:12]} 17. Bd5+ {[%emt 0:00:35]} Kh8 {[%emt 0:00:03]} 18. Qh5 {[%emt 0:00:26]} g6 {[%emt 0:00:21]} 19. Qf3 {[%emt 0:00:28]} Bb7 {[%emt 0:00:41]} 20. Bxb7 {[%emt 0:00:43]} Rxb7 {[%emt 0:00:02]} 21. Nb3 {[%emt 0:00:01]} Nc6 {[%emt 0:00:19]} 22. Bg5 {[%emt 0:00:10]} Rf8 {[%emt 0:00:23]} 23. Qd5 {[%emt 0:00:26]} Ne7 {[%emt 0:01:07]} 24. Qe6 {[%emt 0:00:47]} Ng8 {[%emt 0:00:07]} 25. Na5 {[%emt 0:01:12]} Qxa5 {[%emt 0:01:06]} 26. Qxd6 {[%emt 0:00:02]} Re8 {[%emt 0:00:01]} 27. c4 {[%emt 0:01:11]} Qc3 {[%emt 0:03:43]} 28. Rae1 {[%emt 0:00:59]} Qd4 {[%emt 0:00:47]} 29. Qc6 {[%emt 0:00:24]} Rbb8 {[%emt 0:00:43]} 30. Be3 {[%emt 0:00:03]} Qc3 {[%emt 0:00:01]} 31. Qxc5 {[%emt 0:00:04]} Nf6 {[%emt 0:00:50]} 32. Bg5 {[%emt 0:00:19]} Rb6 {[%emt 0:00:16]} 33. Re2 {[%emt 0:01:04]} Rbe6 {[%emt 0:00:40]} 34. Qxa7 {[%emt 0:00:41]} e4 {[%emt 0:00:30]} 35. h3 {[%emt 0:00:51]} Kg8 {[%emt 0:00:02]} 36. Bxf6 {[%emt 0:00:48]} Qxf6 {[%emt 0:00:03]} 37. Rfe1 {[%emt 0:00:15]} Ra6 {[%emt 0:00:30]} 38. Qb7 {[%emt 0:00:10]} Rxa2 {[%emt 0:00:05]} 39. dxe4 {[%emt 0:00:04]} f4 {[%emt 0:00:05]} 40. e5 {[%emt 0:00:01]} Qe6 {[%emt 0:00:02]} 41. Qe4 {[%emt 0:00:03]} g5 {[%emt 0:00:04]} 42. Rd2 {[%emt 0:00:05]} Ra4 {[%emt 0:00:04]} 43. Rd6 {[%emt 0:00:10]} Qxc4 {[%emt 0:00:03]} 44. Qf5 {[%emt 0:00:02]} Qf7 {[%emt 0:00:12]} 45. Qxg5+ {[%emt 0:00:05]} Kh8 {[%emt 0:00:00]} 46. Rd8 {[%emt 0:00:16]} Ra8 {[%emt 0:00:09]} 47. Rxa8 {[%emt 0:00:02]} Rxa8 {[%emt 0:00:01]} 48. e6 {[%emt 0:00:01]} Qg6 {[%emt 0:00:03]} 49. Qxf4 {[%emt 0:00:03]} Re8 {[%emt 0:00:06]} 50. Qe4 {[%emt 0:00:02]} Qf6 {[%emt 0:00:01]} 51. Qe5 {[%emt 0:00:02]} 1-0